bitfinex/quotes_BTCUSD_20210101
["timestamp","ask_amount","ask_price","bid_price","bid_amount"]
[1609460267621,0.760094,28808.0,28807.0,0.29068292]
[1609460267818,0.560094,28808.0,28807.0,0.29068292]
[1609460268021,0.560094,28808.0,28807.0,1.84068292]
[1609460268219,0.69013382,28808.0,28807.0,1.84068292]
[1609460268820,0.69013382,28808.0,28807.0,0.29068292]
[1609460270020,0.68513382,28808.0,28807.0,0.29068292]
[1609460270220,1.82053382,28808.0,28807.0,0.29068292]
[1609460270824,2.02053382,28808.0,28807.0,0.29068292]
[1609460272721,1.14513382,28808.0,28807.0,0.29068292]
[1609460272938,2.02053382,28808.0,28807.0,0.29068292]
[1609460273538,1.14513382,28808.0,28807.0,0.29068292]
[1609460274043,2.00053382,28808.0,28807.0,0.29068292]
[1609460274344,1.80053382,28808.0,28807.0,0.29068292]
[1609460274742,1.12513382,28808.0,28807.0,0.29068292]
[1609460275743,1.12513382,28808.0,28805.0,0.30597074]
[1609460275948,1.111694,28806.0,28805.0,0.29597074]
[1609460276176,0.50173382,28806.0,28805.0,0.29097074]
[1609460280016,0.70173382,28806.0,28805.0,0.29097074]
[1609460280317,0.50173382,28806.0,28805.0,0.29097074]
[1609460281317,0.361694,28806.0,28805.0,0.29097074]
[1609460281618,0.361694,28806.0,28805.0,0.27983376]
[1609460281816,0.361694,28806.0,28805.0,1.32983376]
[1609460282023,0.58242708,28815.0,28805.0,1.32983376]
[1609460282218,2.71718382,28814.0,28811.0,0.25571487]
[1609460282421,1.361744,28812.0,28811.0,0.25571487]
[1609460282719,0.561744,28812.0,28811.0,0.25571487]
[1609460283116,0.70178382,28812.0,28811.0,0.25571487]
[1609460283920,0.68717103,28812.0,28811.0,0.25571487]
[1609460284345,0.70038527,28812.0,28811.0,0.25571487]
[1609460284545,0.50038527,28812.0,28811.0,0.25571487]
[1609460286246,0.36034545,28812.0,28811.0,0.25571487]
[1609460289451,0.50038527,28812.0,28811.0,0.25571487]
[1609460289754,0.50038527,28812.0,28811.0,2.00571487]
[1609460289987,0.15325406,28812.0,28811.0,2.36742787]
[1609460290391,0.01321424,28812.0,28811.0,2.63322787]
[1609460290591,0.01321424,28812.0,28811.0,2.85822787]
[1609460290797,0.14023982,28819.0,28812.0,3.9]
[1609460290988,0.14023982,28819.0,28818.0,2.72548338]
[1609460291212,0.50195282,28819.0,28818.0,2.83352489]
[1609460291407,0.14023982,28819.0,28818.0,3.19523789]
[1609460291604,0.14023982,28819.0,28818.0,2.83352489]
[1609460292005,0.13523982,28819.0,28818.0,3.19523789]
[1609460292202,0.1412,28820.0,28818.0,3.19523789]
[1609460292401,0.1412,28820.0,28818.0,0.43352489]
[1609460292603,0.1412,28820.0,28818.0,0.29232489]
[1609460293006,0.1412,28820.0,28818.0,1.29232489]
[1609460293403,0.361713,28819.0,28818.0,1.29232489]
[1609460293635,0.361713,28819.0,28818.0,2.69232489]
[1609460293837,0.141,28820.0,28818.0,2.69232489]
[1609460294138,0.141,28820.0,28819.0,3.711713]
[1609460294435,0.1384,28820.0,28819.0,4.460593]
[1609460294638,0.1366,28820.0,28819.0,4.107863]
[1609460294839,0.1334,28820.0,28819.0,4.407863]
[1609460295038,0.1294,28820.0,28819.0,4.407863]
[1609460295235,0.1286,28820.0,28819.0,4.407863]
[1609460296641,0.1286,28820.0,28819.0,0.916663]
[1609460296944,0.1236,28820.0,28819.0,2.508983]
[1609460298143,0.1236,28820.0,28819.0,0.417783]
[1609460298347,0.1236,28820.0,28819.0,0.361713]
[1609460299142,0.1236,28820.0,28819.0,0.356713]
[1609460299563,0.1236,28820.0,28819.0,1.206713]
[1609460299966,0.1236,28820.0,28819.0,0.356713]
[1609460300564,0.1236,28820.0,28819.0,1.306713]
[1609460301167,0.999,28820.0,28819.0,0.356713]
[1609460301375,1.505713,28820.0,28818.0,0.29232489]
[1609460301570,6.37049865,28819.0,28818.0,0.29232489]
[1609460301773,6.337064,28819.0,28813.0,0.23562288]
[1609460301975,0.561664,28815.0,28812.0,0.27546171]
[1609460302178,1.861664,28813.0,28812.0,0.27546171]
[1609460302374,3.192064,28813.0,28812.0,0.27546171]
[1609460302572,3.03210382,28813.0,28812.0,0.27546171]
[1609460303573,2.016664,28813.0,28812.0,0.27546171]
[1609460305788,2.15670382,28813.0,28812.0,0.27546171]
[1609460306750,2.016664,28813.0,28812.0,0.27546171]
[1609460307751,2.15670382,28813.0,28812.0,0.27546171]
[1609460308363,0.53907982,28813.0,28812.0,4.80292571]
[1609460308556,0.14003982,28813.0,28812.0,4.86572571]
[1609460308862,0.14003982,28819.0,28812.0,4.86572571]
[1609460309054,0.14003982,28819.0,28813.0,0.486264]
[1609460309253,0.14003982,28819.0,28814.0,0.1246]
[1609460309453,0.14003982,28819.0,28815.0,0.361664]
[1609460309761,0.14003982,28819.0,28818.0,4.402864]
[1609460309956,0.14003982,28819.0,28818.0,5.527464]
[1609460310878,0.13503982,28819.0,28818.0,5.527464]
[1609460311072,0.13503982,28819.0,28818.0,5.802464]
[1609460311673,0.13503982,28819.0,28818.0,5.527464]
[1609460312680,0.0002,28821.0,28819.0,0.1412]
[1609460312977,0.0002,28821.0,28820.0,0.361664]
[1609460315281,0.0111819,28821.0,28820.0,0.361664]
[1609460315481,0.0111819,28821.0,28820.0,1.111664]
[1609460315680,0.0111819,28821.0,28820.0,0.361664]
[1609460316393,0.0111819,28821.0,28820.0,1.411664]
[1609460316593,0.0111819,28821.0,28820.0,0.361664]
[1609460318802,0.0111819,28821.0,28819.0,1.0]
[1609460319996,0.0111819,28821.0,28819.0,0.99]
[1609460320302,0.0111819,28821.0,28820.0,1.586264]
[1609460320502,0.0103819,28821.0,28820.0,4.756264]
[1609460320698,0.0093819,28821.0,28820.0,4.897464]
[1609460320904,0.0085819,28821.0,28820.0,5.897464]
[1609460321190,0.0069819,28821.0,28820.0,5.897464]
[1609460322589,0.0069819,28821.0,28820.0,3.097464]
[1609460323091,0.0069819,28821.0,28820.0,2.972864]
[1609460323287,0.0069819,28821.0,28820.0,5.247464]
[1609460323987,0.0069819,28821.0,28820.0,5.147464]
[1609460324187,0.0169819,28821.0,28820.0,5.147464]
[1609460325807,0.0169819,28821.0,28820.0,5.185494]
[1609460326007,0.0169819,28821.0,28820.0,5.485494]
[1609460327911,0.0169819,28821.0,28820.0,5.360894]
[1609460328109,0.0169819,28821.0,28820.0,4.990894]
[1609460328313,0.0169819,28821.0,28820.0,5.765494]
[1609460328510,0.0169819,28821.0,28820.0,5.115494]
[1609460329112,0.0169819,28821.0,28820.0,4.990894]
[1609460329313,0.0169819,28821.0,28820.0,1.361664]
[1609460330617,1.6404559,28821.0,28819.0,0.0008]
[1609460330822,5.392064,28820.0,28819.0,0.0008]
[1609460331123,6.42549865,28820.0,28819.0,0.0008]
[1609460331330,6.56553847,28820.0,28819.0,0.0008]
[1609460331732,7.31053847,28820.0,28819.0,0.0008]
[1609460331938,1.99013847,28820.0,28819.0,0.0008]
[1609460332337,1.95670382,28820.0,28819.0,0.0008]
[1609460334041,1.99013847,28820.0,28819.0,0.0008]
[1609460334343,4.74053847,28820.0,28819.0,0.0008]
[1609460334542,3.04053847,28820.0,28819.0,0.0008]
[1609460334740,2.16513847,28820.0,28819.0,0.0008]
[1609460335545,2.13170382,28820.0,28819.0,0.0008]
[1609460335844,1.67723682,28820.0,28819.0,0.0008]
[1609460336044,2.03890282,28820.0,28819.0,1.6008]
[1609460336481,0.67670582,28820.0,28819.0,2.2008]
[1609460336782,0.50170582,28820.0,28819.0,1.6008]
[1609460336981,0.14003982,28820.0,28819.0,1.6008]
[1609460337185,0.0004,28823.0,28820.0,2.75]
[1609460337384,0.0004,28823.0,28821.0,0.25]
[1609460337580,1.0,28822.0,28821.0,0.25]
[1609460337789,0.72813586,28822.0,28821.0,3.611666]
[1609460337987,0.0004,28823.0,28821.0,3.611666]
[1609460338186,0.0004,28823.0,28822.0,0.361666]
[1609460338386,0.0008,28831.0,28822.0,0.361666]
[1609460338585,0.0008,28831.0,28824.0,0.1865873]
[1609460338586,0.1356,28829.0,28824.0,0.1865873]
[1609460338814,0.1356,28829.0,28824.0,0.5482533]
[1609460339319,1.0004,28825.0,28824.0,0.5482533]
[1609460339515,0.0004,28825.0,28824.0,0.1865873]
[1609460339715,0.0004,28825.0,28824.0,0.5482533]
[1609460339921,0.1356,28829.0,28824.0,0.1815873]
[1609460340718,0.1356,28829.0,28825.0,2.65]
[1609460341920,0.361666,28826.0,28824.0,0.1815873]
[1609460342920,0.356666,28826.0,28824.0,0.1815873]
[1609460343320,0.1356,28829.0,28824.0,0.1815873]
[1609460343524,0.1356,28829.0,28825.0,0.589469]
[1609460343927,0.117,28827.0,28825.0,0.589469]
[1609460344127,0.9996,28828.0,28826.0,3.9]
[1609460344322,0.1286,28829.0,28828.0,4.525]
[1609460344554,0.0008,28832.0,28830.0,3.9]
[1609460344555,0.0006,28832.0,28830.0,3.9]
[1609460344755,0.0004,28833.0,28832.0,4.525]
[1609460345040,0.0004,28833.0,28832.0,4.886619]
[1609460345246,0.93418543,28834.0,28833.0,4.04]
[1609460345441,0.93418543,28834.0,28833.0,5.026619]
[1609460345739,0.31731445,28834.0,28833.0,5.026619]
[1609460346348,0.0006,28840.0,28834.0,4.665]
[1609460346549,0.0006,28840.0,28839.0,2.56158019]
[1609460346749,0.0006,28841.0,28840.0,2.95]
[1609460346942,0.0006,28841.0,28840.0,3.931619]
[1609460347150,0.13676294,28843.0,28841.0,1.85]
[1609460347151,0.12816294,28843.0,28841.0,1.85]
[1609460347342,0.12816294,28843.0,28842.0,2.831619]
[1609460347540,0.12816294,28843.0,28842.0,0.37]
[1609460347745,0.48978194,28843.0,28839.0,0.57357019]
[1609460348047,0.05200204,28843.0,28840.0,0.361619]
[1609460348244,0.0008,28846.0,28841.0,2.6]
[1609460348547,0.0008,28846.0,28844.0,0.17840322]
[1609460348844,0.162582,28845.0,28844.0,0.17840322]
[1609460349251,0.8754,28852.0,28845.0,0.65]
[1609460349447,0.8754,28852.0,28850.0,0.29007613]
[1609460349651,0.8654,28852.0,28850.0,0.29007613]
[1609460349845,0.8254,28852.0,28850.0,0.29007613]
[1609460350476,0.8254,28852.0,28850.0,0.28507613]
[1609460350872,0.8154,28852.0,28850.0,0.28507613]
[1609460351472,0.8104,28852.0,28850.0,0.28507613]
[1609460351977,1.44777617,28854.0,28850.0,0.28507613]
[1609460352177,0.245,28853.0,28850.0,0.28507613]
[1609460352572,0.24,28853.0,28850.0,0.28507613]
[1609460353474,0.225,28853.0,28850.0,0.28507613]
[1609460353672,0.215,28853.0,28850.0,0.27507613]
[1609460353873,0.215,28853.0,28850.0,0.27007613]
[1609460354385,1.30773635,28854.0,28850.0,0.45461613]
[1609460356090,0.0008,28858.0,28850.0,0.45461613]
[1609460356291,0.0008,28858.0,28857.0,0.18261735]
[1609460357291,0.0129155,28860.0,28857.0,0.18261735]
[1609460357691,0.0129155,28860.0,28857.0,0.11261735]
[1609460358595,1.0029155,28860.0,28857.0,0.11261735]
[1609460358795,1.0023155,28860.0,28857.0,0.33099735]
[1609460358995,0.9973155,28860.0,28857.0,0.33099735]
[1609460359193,0.94341721,28860.0,28857.0,0.33099735]
[1609460359398,0.7117824,28860.0,28857.0,0.33099735]
[1609460359593,0.0008,28861.0,28857.0,0.33099735]
[1609460360495,0.0008,28861.0,28857.0,0.11261735]
[1609460361092,0.01096732,28860.0,28857.0,0.11261735]
[1609460362337,0.01096732,28860.0,28852.0,0.32960849]
[1609460362338,0.21796732,28860.0,28852.0,0.32960849]
[1609460362541,0.21796732,28860.0,28841.0,1.11]
[1609460362542,0.82062013,28859.0,28846.0,0.203798]
[1609460362736,0.94218548,28858.0,28846.0,0.203798]
[1609460362938,0.82062013,28857.0,28846.0,0.203798]
[1609460363134,0.78718548,28856.0,28846.0,0.203798]
[1609460363345,0.42990587,28855.0,28846.0,0.203798]
[1609460363547,0.39647122,28854.0,28846.0,0.203798]
[1609460363851,0.82062013,28853.0,28846.0,0.203798]
[1609460364041,0.53647122,28852.0,28846.0,0.203798]
[1609460364242,0.3588,28851.0,28846.0,0.203798]
[1609460364442,0.59147122,28850.0,28846.0,0.203798]
[1609460364643,0.39647122,28849.0,28846.0,0.203798]
[1609460364946,0.195,28850.0,28846.0,0.203798]
[1609460365414,0.14003982,28852.0,28841.0,0.11]
[1609460365815,0.03343465,28851.0,28841.0,0.11]
[1609460366364,0.04440673,28851.0,28841.0,0.11]
[1609460366756,0.44087795,28851.0,28841.0,0.11]
[1609460367056,0.57490587,28850.0,28841.0,1.11]
[1609460367257,0.54147122,28850.0,28841.0,1.11]
[1609460367457,0.145,28850.0,28841.0,1.11]
[1609460367661,0.1510119,28851.0,28841.0,0.11]
[1609460368055,0.01097208,28851.0,28841.0,0.11]
[1609460368463,0.01097208,28851.0,28842.0,1.0]
[1609460368661,0.01097208,28851.0,28841.0,1.11]
[1609460368898,0.01097208,28851.0,28842.0,2.0]
[1609460369598,0.01097208,28851.0,28843.0,1.0]
[1609460369798,0.01097208,28851.0,28843.0,0.986]
[1609460370006,0.01097208,28851.0,28844.0,0.856453]
[1609460370198,0.01097208,28851.0,28845.0,1.186]
[1609460370400,0.01097208,28851.0,28846.0,1.347453]
[1609460370704,0.01097208,28851.0,28845.0,1.0]
[1609460370900,0.01097208,28851.0,28846.0,0.986]
[1609460371099,0.01097208,28851.0,28849.0,0.24159567]
[1609460372597,0.01097208,28851.0,28845.0,1.0]
[1609460372804,0.22568208,28851.0,28845.0,1.0]
[1609460373399,0.3657125,28851.0,28844.0,0.20846564]
[1609460374537,0.22568208,28851.0,28844.0,0.20846564]
[1609460374842,0.22568208,28851.0,28849.0,0.31099635]
[1609460375141,0.22568208,28851.0,28844.0,0.24602139]
[1609460376244,0.01097208,28851.0,28849.0,0.22613653]
[1609460382563,0.01097208,28851.0,28836.0,0.12618788]
[1609460382564,0.01097208,28851.0,28839.0,0.29252149]
[1609460382768,0.01097208,28851.0,28836.0,1.12618788]
[1609460382967,0.40168634,28851.0,28836.0,1.12618788]
[1609460383171,1.0,28849.0,28836.0,1.12618788]
[1609460383370,0.55147122,28848.0,28836.0,1.12618788]
[1609460383567,0.03343465,28847.0,28836.0,0.12618788]
[1609460383771,0.98294891,28847.0,28832.0,0.12628824]
[1609460384005,0.62647122,28846.0,28832.0,0.12628824]
[1609460384215,1.03343465,28845.0,28830.0,0.18163047]
[1609460384414,0.39647122,28844.0,28835.0,0.19561388]
[1609460384611,0.69647122,28844.0,28835.0,0.19561388]
[1609460384910,0.39647122,28843.0,28840.0,0.24306745]
[1609460385105,0.53650164,28843.0,28840.0,0.24306745]
[1609460387307,0.39647122,28842.0,28840.0,0.24306745]
[1609460387509,1.54647122,28841.0,28840.0,0.24306745]
[1609460387708,1.77647122,28841.0,28840.0,0.24306745]
[1609460387910,1.38,28841.0,28840.0,0.24306745]
[1609460388106,0.23,28841.0,28840.0,0.24306745]
[1609460388312,0.39647122,28843.0,28840.0,0.24306745]
[1609460388510,0.3,28844.0,28840.0,0.24306745]
[1609460389316,0.44003042,28844.0,28840.0,0.24306745]
[1609460390346,0.14003042,28844.0,28840.0,0.24306745]
[1609460390751,0.14003042,28844.0,28840.0,0.24003245]
[1609460391150,0.17346507,28844.0,28840.0,0.24003245]
[1609460391345,0.14003042,28844.0,28840.0,0.22603245]
[1609460391548,0.17346507,28844.0,28840.0,0.22603245]
[1609460391749,0.175,28843.0,28840.0,0.22603245]
[1609460391947,0.31503042,28843.0,28840.0,0.22603245]
[1609460392348,0.39647122,28842.0,28840.0,0.22603245]
[1609460392549,0.39647122,28842.0,28840.0,0.20796922]
[1609460392749,0.39647122,28841.0,28840.0,0.20796922]
[1609460392950,0.14003042,28842.0,28840.0,0.20796922]
[1609460393984,0.31503042,28843.0,28840.0,0.20796922]
[1609460394174,0.14003042,28843.0,28840.0,0.20796922]
[1609460394978,0.15100407,28844.0,28840.0,0.20796922]
[1609460395375,0.18443872,28844.0,28840.0,0.20796922]
[1609460395576,0.15100407,28844.0,28840.0,0.20796922]
[1609460395985,0.01097365,28844.0,28840.0,0.20796922]
[1609460396180,0.155,28843.0,28840.0,0.20296922]
[1609460396879,0.29503042,28843.0,28840.0,0.20296922]
[1609460398085,0.155,28843.0,28840.0,0.20296922]
[1609460398781,0.3812,28843.0,28840.0,0.20296922]
[1609460399220,0.39647122,28842.0,28835.0,0.2506118]
[1609460399423,0.42990587,28842.0,28831.0,0.30502122]
[1609460399628,0.03343465,28841.0,28831.0,0.30502122]
[1609460399829,0.57147122,28840.0,28831.0,0.17872533]
[1609460400022,0.39647122,28839.0,28831.0,0.17872533]
[1609460400231,0.42990587,28838.0,28831.0,0.17872533]
[1609460400424,0.39647122,28837.0,28831.0,0.17872533]
[1609460400623,0.62415122,28837.0,28831.0,0.17872533]
[1609460400825,0.65758587,28837.0,28831.0,0.17872533]
[1609460401031,0.39647122,28836.0,28831.0,0.17872533]
[1609460401425,1.39647122,28836.0,28831.0,0.17872533]
[1609460401626,0.42990587,28835.0,28831.0,0.17872533]
[1609460401825,0.21,28834.0,28831.0,0.17872533]
[1609460402231,0.21,28834.0,28831.0,0.17372533]
[1609460402661,0.21,28834.0,28831.0,0.16872533]
[1609460403231,0.21,28834.0,28826.0,0.24308418]
[1609460403528,0.39647122,28833.0,28826.0,0.24308418]
[1609460404566,0.56993629,28833.0,28826.0,0.24308418]
[1609460404767,0.39647122,28832.0,28826.0,0.24308418]
[1609460404963,0.39647122,28831.0,28826.0,0.24308418]
[1609460405162,0.24578,28831.0,28826.0,0.24308418]
[1609460405665,0.38581042,28831.0,28826.0,0.24308418]
[1609460405867,0.38581042,28831.0,28826.0,0.23808418]
[1609460406066,0.39647122,28830.0,28826.0,0.23808418]
[1609460406477,1.14334254,28830.0,28820.0,0.12721997]
[1609460406668,0.75527122,28828.0,28820.0,0.12721997]
[1609460406873,0.78454254,28827.0,28820.0,0.001]
[1609460407066,0.03343465,28826.0,28820.0,0.001]
[1609460407272,0.6536997,28826.0,28820.0,0.001]
[1609460407473,1.16615628,28825.0,28820.0,0.001]
[1609460407673,0.39647122,28824.0,28820.0,0.001]
[1609460407877,0.03343465,28823.0,28819.0,0.0012]
[1609460408071,0.03343465,28823.0,28816.0,5.022e-05]
[1609460408072,1.11335984,28821.0,28816.0,5.022e-05]
[1609460408295,0.39647122,28820.0,28816.0,5.022e-05]
[1609460408494,0.78370587,28820.0,28816.0,5.022e-05]
[1609460408696,0.56647122,28819.0,28816.0,5.022e-05]
[1609460408896,0.39647122,28818.0,28816.0,5.022e-05]
[1609460409100,0.3538,28817.0,28815.0,0.0006]
[1609460409303,0.1,28814.0,28812.0,0.0006]
[1609460409502,0.39647122,28813.0,28811.0,0.0008]
[1609460409798,3.88343465,28812.0,28811.0,0.0008]
[1609460409997,5.06490587,28812.0,28811.0,0.0008]
[1609460410612,5.20493629,28812.0,28811.0,0.0008]
[1609460411401,5.20493629,28812.0,28811.0,0.0004]
[1609460411693,3.85,28808.0,28802.0,0.0006]
[1609460411906,3.85,28808.0,28795.0,0.001]
[1609460411907,0.39647122,28802.0,28795.0,0.001]
[1609460412098,0.39647122,28800.0,28795.0,0.001]
[1609460412294,4.26650597,28799.0,28795.0,0.001]
[1609460412500,0.39647122,28797.0,28791.0,0.0006]
[1609460412695,0.75027122,28795.0,28791.0,0.0006]
[1609460412898,0.39647122,28794.0,28791.0,0.0006]
[1609460413100,0.54147122,28793.0,28791.0,0.0006]
[1609460413297,0.39647122,28792.0,28791.0,0.0006]
[1609460414293,2.09647122,28792.0,28791.0,0.0006]
[1609460414594,2.48147122,28792.0,28791.0,0.0006]
[1609460414996,0.78147122,28792.0,28791.0,0.0006]
[1609460415195,0.39647122,28792.0,28791.0,0.0006]
[1609460415397,2.39647122,28792.0,28791.0,0.0006]
[1609460416424,3.98647122,28792.0,28791.0,0.0006]
[1609460416628,3.35027122,28791.0,28787.0,0.0012]
[1609460416829,0.75027122,28790.0,28787.0,0.0012]
[1609460417033,0.54880122,28789.0,28788.0,0.31283197]
[1609460417334,0.15233,28789.0,28788.0,5.11028497]
[1609460417530,0.15233,28789.0,28788.0,6.12365085]
[1609460417731,0.09843171,28789.0,28788.0,6.10865085]
[1609460418133,0.39647122,28806.0,28788.0,6.10865085]
[1609460418436,0.43629082,28807.0,28788.0,6.10865085]
[1609460418437,0.52531294,28807.0,28796.0,0.2]
[1609460418632,0.54147122,28806.0,28794.0,0.45336827]
[1609460419562,0.54147122,28806.0,28791.0,0.00503347]
[1609460419563,0.54147122,28806.0,28798.0,0.22464426]
[1609460419958,0.39647122,28805.0,28798.0,0.22464426]
[1609460420162,0.39647122,28805.0,28798.0,0.21964426]
[1609460420362,0.39647122,28804.0,28795.0,0.2]
[1609460420562,0.39647122,28803.0,28793.0,0.4076825]
[1609460420765,0.39647122,28802.0,28794.0,0.20503347]
[1609460420966,0.39647122,28801.0,28793.0,0.2076825]
[1609460421167,0.39647122,28800.0,28793.0,0.2076825]
[1609460421463,0.39647122,28800.0,28793.0,0.2026825]
[1609460421464,0.39647122,28799.0,28793.0,0.2026825]
[1609460421760,0.39647122,28797.0,28793.0,0.2026825]
[1609460421963,0.04334,28800.0,28793.0,0.2026825]
[1609460422661,0.43981122,28800.0,28793.0,0.2026825]
[1609460422861,0.04334,28800.0,28793.0,0.1976825]
[1609460423770,0.04334,28800.0,28789.0,0.23463176]
[1609460423967,0.02843465,28799.0,28789.0,0.23463176]
[1609460424164,0.39647122,28798.0,28789.0,0.22963176]
[1609460424364,0.39647122,28797.0,28789.0,0.22963176]
[1609460424663,0.02843465,28796.0,28789.0,0.22963176]
[1609460424965,0.05512,28797.0,28789.0,0.22963176]
[1609460425713,0.155,28795.0,28789.0,0.22963176]
[1609460425915,0.39647122,28794.0,28789.0,0.22963176]
[1609460426734,0.39647122,28794.0,28793.0,0.28936787]
[1609460427231,0.40882225,28794.0,28793.0,0.28936787]
[1609460427431,0.63882225,28794.0,28793.0,0.28936787]
[1609460428132,0.24235103,28794.0,28793.0,0.28936787]
[1609460428436,0.01235103,28794.0,28793.0,0.28936787]
[1609460429266,2.46235103,28794.0,28793.0,0.28936787]
[1609460429767,2.84235103,28794.0,28793.0,0.28936787]
[1609460430269,0.39235103,28794.0,28793.0,0.28936787]
[1609460430568,0.00235103,28794.0,28793.0,0.28936787]
[1609460430871,0.39647122,28796.0,28793.0,0.28936787]
[1609460431069,0.205,28795.0,28793.0,0.28936787]
[1609460432370,0.0109922,28794.0,28793.0,0.28936787]
[1609460433075,0.0109922,28794.0,28793.0,0.18936787]
[1609460433574,0.0109922,28794.0,28793.0,0.38936787]
[1609460433872,0.0109922,28794.0,28793.0,1.53682087]
[1609460434173,0.0109922,28794.0,28793.0,3.03682087]
[1609460434474,0.0109922,28794.0,28793.0,1.73682087]
[1609460434696,0.0109922,28794.0,28793.0,2.03182087]
[1609460434897,0.0109922,28794.0,28793.0,1.74185434]
[1609460435194,0.0109922,28794.0,28793.0,0.75082087]
[1609460435497,0.0109922,28794.0,28793.0,1.00082087]
[1609460435796,0.0109922,28794.0,28793.0,0.80082087]
[1609460435998,0.0109922,28794.0,28793.0,1.00082087]
[1609460436198,0.0109922,28794.0,28793.0,0.80082087]
[1609460437816,0.0009922,28794.0,28793.0,2.50082087]
[1609460438011,0.0009922,28794.0,28793.0,2.30082087]
[1609460438354,0.0009922,28794.0,28793.0,2.67582087]
[1609460438754,0.0009922,28794.0,28793.0,2.87582087]
[1609460439354,0.0009922,28794.0,28793.0,1.37582087]
[1609460439663,0.0009922,28794.0,28793.0,0.80082087]
[1609460440159,0.0009922,28794.0,28793.0,0.43936787]
[1609460441055,0.0009922,28794.0,28793.0,0.80082087]
[1609460442070,0.2104622,28794.0,28793.0,0.80082087]
[1609460442764,0.2104622,28794.0,28793.0,0.55082087]
[1609460442963,0.2104622,28794.0,28793.0,0.18936787]
[1609460444729,0.2104622,28794.0,28793.0,0.43936787]
[1609460445734,0.2104622,28794.0,28789.0,0.25468843]
[1609460446035,0.39647122,28793.0,28789.0,0.25468843]
[1609460446433,0.39647122,28793.0,28789.0,0.22583056]
[1609460446630,1.0,28792.0,28789.0,0.22583056]
[1609460446830,4.24647122,28790.0,28789.0,0.22583056]
[1609460447034,4.24647122,28790.0,28787.0,0.0012]
[1609460447231,0.39647122,28789.0,28787.0,0.0012]
[1609460447432,4.035,28788.0,28787.0,0.0012]
[1609460447633,2.6,28787.0,28784.0,0.23578108]
[1609460447855,0.39647122,28786.0,28784.0,0.23578108]
[1609460448150,3.445,28785.0,28784.0,0.23578108]
[1609460448556,3.0,28784.0,28781.0,0.24018108]
[1609460448854,3.39647122,28781.0,28780.0,0.18354723]
[1609460449053,3.63876122,28781.0,28780.0,0.18354723]
[1609460449352,3.63876122,28781.0,28780.0,0.0012]
[1609460449353,0.63876122,28781.0,28780.0,0.0012]
[1609460449549,0.88876122,28781.0,28780.0,0.0012]
[1609460449754,0.88876122,28781.0,28780.0,0.2512]
[1609460449951,2.69229,28781.0,28780.0,0.2512]
[1609460450351,2.68279,28781.0,28780.0,0.2512]
[1609460450857,3.43279,28781.0,28780.0,0.2512]
[1609460451351,3.43279,28781.0,28780.0,0.0012]
[1609460451655,4.47426122,28781.0,28780.0,0.0012]
[1609460452254,5.07779,28781.0,28780.0,0.0012]
[1609460453681,4.35622465,28781.0,28780.0,0.0012]
[1609460453982,3.35622465,28781.0,28780.0,0.0012]
[1609460454279,3.72426122,28781.0,28780.0,0.0012]
[1609460454476,3.72426122,28781.0,28779.0,0.0008]
[1609460454477,0.14,28780.0,28779.0,0.0008]
[1609460454687,0.1,28777.0,28776.0,0.0012]
[1609460454882,0.39647122,28776.0,28774.0,0.0008]
[1609460455180,5.09845122,28774.0,28773.0,0.0012]
[1609460455480,4.73041465,28774.0,28773.0,0.0008]
[1609460455680,5.09845122,28774.0,28773.0,0.0008]
[1609460455881,5.09845122,28774.0,28767.0,0.76565089]
[1609460456086,5.09845122,28774.0,28771.0,0.0004]
[1609460456087,4.31647122,28772.0,28771.0,0.0004]
[1609460456283,4.19597122,28771.0,28767.0,0.0014]
[1609460456500,4.22440587,28771.0,28767.0,0.0014]
[1609460456696,5.09940587,28771.0,28767.0,0.0014]
[1609460457294,5.07097122,28771.0,28767.0,0.0014]
[1609460458392,0.39597122,28771.0,28767.0,0.0014]
[1609460458898,0.39597122,28771.0,28767.0,0.22399992]
[1609460459156,0.74977122,28773.0,28767.0,0.22399992]
[1609460459454,0.74977122,28772.0,28767.0,0.22399992]
[1609460459652,0.39597122,28771.0,28770.0,0.2516]
[1609460459852,0.15698,28774.0,28770.0,0.2516]
[1609460460052,0.3538,28773.0,28770.0,0.2516]
[1609460460252,0.74977122,28772.0,28770.0,0.2516]
[1609460460456,0.39597122,28771.0,28770.0,0.2516]
[1609460460657,0.06284,28772.0,28770.0,0.0016]
[1609460461255,0.81261122,28772.0,28770.0,0.0016]
[1609460461454,2.19597122,28771.0,28770.0,0.0016]
[1609460461652,2.15,28771.0,28770.0,0.0016]
[1609460463485,2.59597122,28770.0,28767.0,0.0008]
[1609460463691,2.59597122,28770.0,28762.0,0.001]
[1609460463692,2.34,28768.0,28763.0,0.0012]
[1609460463993,2.34,28768.0,28763.0,0.0008]
[1609460463994,0.3538,28765.0,28763.0,0.0008]
[1609460464185,4.19597122,28764.0,28763.0,0.0008]
[1609460464390,0.39597122,28764.0,28763.0,0.0008]
[1609460465685,4.19597122,28764.0,28763.0,0.0008]
[1609460466082,4.47343465,28764.0,28763.0,0.0008]
[1609460466483,4.84097122,28764.0,28763.0,0.0008]
[1609460467084,4.445,28764.0,28763.0,0.0008]
[1609460467583,4.83597122,28764.0,28763.0,0.0008]
[1609460467983,4.44,28764.0,28763.0,0.0008]
[1609460468704,4.44,28764.0,28762.0,0.0006]
[1609460468908,0.74977122,28762.0,28760.0,0.00128]
[1609460469107,3.84597122,28761.0,28760.0,0.00128]
[1609460469504,4.19977122,28761.0,28760.0,0.00128]
[1609460469807,1.52477122,28761.0,28760.0,0.00128]
[1609460470005,0.74977122,28761.0,28760.0,0.00128]
[1609460470308,1.85,28760.0,28757.0,0.00108]
[1609460470608,2.59977122,28758.0,28756.0,0.30265786]
[1609460470807,2.39597122,28757.0,28756.0,0.30265786]
[1609460471011,0.74977122,28757.0,28756.0,0.30265786]
[1609460471304,0.92477122,28757.0,28756.0,0.30265786]
[1609460471543,0.175,28757.0,28756.0,0.30265786]
[1609460471739,0.65,28757.0,28756.0,0.29765786]
[1609460471940,0.3538,28757.0,28756.0,0.29765786]
[1609460472139,0.44458122,28759.0,28756.0,0.29765786]
[1609460472336,0.39597122,28758.0,28756.0,0.29765786]
[1609460472536,0.39597122,28757.0,28756.0,0.29765786]
[1609460472839,0.04361,28759.0,28756.0,0.29765786]
[1609460473037,0.04361,28759.0,28756.0,0.30269133]
[1609460473240,0.74977122,28760.0,28755.0,0.00623347]